fUSD/lending_fUSD_20240527
["ID","MTS","AMOUNT","RATE_DAILY","PERIOD"]
[328081888,1716839477510,-560.41,0.00030891,6]
[328081889,1716839477520,-1089.55055981,0.00030892,15]
[328081890,1716839477531,-500.0,0.00030892,6]
[328081891,1716839477540,-500.0,0.00030892,6]
[328081892,1716839477552,-571.62,0.00030892,6]
[328081893,1716839477562,-500.0,0.00030892,6]
[328081894,1716839477571,-500.0,0.00030892,6]
[328081895,1716839477580,-500.0,0.00030892,6]
[328081896,1716839477589,-500.0,0.00030892,6]
[328081897,1716839477599,-500.0,0.00030892,6]
[328081898,1716839477608,-500.0,0.00030892,6]
[328081899,1716839477618,-678.42,0.00030892,6]
[328081900,1716839477627,-516.33,0.00030892,6]
[328081901,1716839477636,-500.0,0.00030892,6]
[328081902,1716839477646,-500.0,0.00030892,6]
[328081903,1716839477656,-500.0,0.00030892,6]
[328081904,1716839477665,-500.0,0.00030892,6]
[328081905,1716839477675,-500.0,0.00030892,6]
[328081906,1716839477685,-500.0,0.00030892,6]
[328081907,1716839477694,-500.0,0.00030892,6]
[328081908,1716839477704,-533.36,0.00030892,6]
[328081909,1716839477714,-500.0,0.00030892,6]
[328081910,1716839477724,-500.0,0.00030892,6]
[328081911,1716839477733,-500.0,0.00030892,6]
[328081912,1716839477743,-335.98,0.00030892,6]
[328081914,1716839477752,-500.0,0.00030892,6]
[328081915,1716839477762,-645.79,0.00030892,6]
[328081916,1716839477772,-513.74,0.00030892,6]
[328081917,1716839477782,-516.51,0.00030892,6]
[328081918,1716839477791,-133.83694069,0.00030892,6]
[328081919,1716839478073,-366.16305931,0.00030892,6]
[328081920,1716839478083,-498.55,0.00030892,6]
[328081921,1716839478092,-500.0,0.00030892,6]
[328081922,1716839478102,-500.0,0.00030892,6]
[328081923,1716839478111,-500.0,0.00030892,6]
[328081924,1716839478121,-304.8,0.00030892,6]
[328081925,1716839478130,-500.0,0.00030892,6]
[328081926,1716839478140,-327.68036669,0.00030892,6]
[328081927,1716839478575,-158.53620513,0.00030035,7]
[328081928,1716839478584,-151.0,0.00030136,7]
[328081929,1716839478593,-155.20088,0.00030136,7]
[328081930,1716839478603,-266.3723,0.00030136,6]
[328081931,1716839478612,-172.31963331,0.00030892,6]
[328081932,1716839478622,-500.0,0.00030892,6]
[328081933,1716839478631,-500.0,0.00030892,6]
[328081934,1716839478640,-500.0,0.00030892,6]
[328081935,1716839478650,-2233.57298426,0.00030892,6]
[328081936,1716839478661,-1488.74012002,0.00030892,6]
[328081937,1716839478673,-4392.25052,0.00030892,6]
[328081938,1716839478685,-442.9097041,0.00030892,6]
[328081939,1716839478696,-2254.20056872,0.00030892,6]
[328081940,1716839478708,-1531.7361029,0.00030892,6]
[328081941,1716839478717,-500.0,0.00030892,6]
[328081942,1716839478727,-500.0,0.00030892,6]
[328081943,1716839478736,-500.0,0.00030892,6]
[328081944,1716839478745,-500.0,0.00030892,6]
[328081945,1716839478755,-370.26389711,0.00030892,6]
[328081946,1716839478767,-129.73610289,0.00030892,6]
[328081947,1716839478776,-951.79,0.00030892,6]
[328081948,1716839478785,-500.0,0.00030892,6]
[328081949,1716839478795,-695.12,0.00030892,6]
[328081950,1716839478808,-500.0,0.00030892,6]
[328081951,1716839478817,-500.0,0.00030892,6]
[328081952,1716839478827,-500.0,0.00030892,6]
[328081953,1716839478836,-1334.09,0.00030892,6]
[328081954,1716839478845,-1123.44,0.00030892,6]
[328081955,1716839478855,-500.0,0.00030892,6]
[328081956,1716839478865,-216.02389711,0.00030892,6]
[328081957,1716839478878,-785.35610289,0.00030892,6]
[328081958,1716839478887,-733.2,0.00030892,6]
[328081959,1716839478904,-721.19,0.00030892,6]
[328081960,1716839478914,-1006.25,0.00030892,6]
[328081961,1716839478924,-724.09,0.00030892,6]
[328081962,1716839478933,-500.0,0.00030892,6]
[328081963,1716839478943,-500.0,0.00030892,6]
[328081964,1716839478952,-500.0,0.00030892,6]
[328081965,1716839478962,-1655.75,0.00030892,6]
[328081966,1716839478971,-1076.07,0.00030892,6]
[328081967,1716839478981,-735.27,0.00030892,6]
[328081969,1716839478990,-510.29,0.00030892,6]
[328081970,1716839478999,-2232.04,0.00030892,6]
[328081971,1716839479009,-837.83,0.00030892,6]
[328081972,1716839479018,-1124.77,0.00030892,6]
[328081973,1716839479028,-500.0,0.00030892,6]
[328081974,1716839479036,-608.37,0.00030892,6]
[328081975,1716839479046,-162.86,0.00030892,6]
[328081976,1716839479058,-917.67,0.00030892,6]
[328081977,1716839479068,-500.0,0.00030892,6]
[328081978,1716839479079,-699.51,0.00030892,6]
[328081979,1716839479088,-597.81,0.00030892,6]
[328081980,1716839479097,-607.05,0.00030892,6]
[328081981,1716839479106,-1454.5,0.00030892,6]
[328081982,1716839479115,-500.0,0.00030892,6]
[328081983,1716839479124,-1092.34,0.00030892,6]
[328081985,1716839479134,-500.0,0.00030892,6]
[328081986,1716839479143,-882.73,0.00030892,6]
[328081987,1716839479152,-1013.2,0.00030892,6]
[328081988,1716839479162,-500.0,0.00030892,6]
[328081989,1716839479171,-536.51,0.00030892,6]
[328081990,1716839479181,-500.0,0.00030892,6]
[328081991,1716839479190,-500.0,0.00030892,6]
[328081992,1716839479206,-285.21,0.00030892,6]
[328081993,1716839479215,-500.0,0.00030892,6]
[328081994,1716839479225,-500.0,0.00030892,6]
[328081995,1716839479234,-2913.37,0.00030892,6]
[328081996,1716839479245,-1504.37,0.00030892,6]
[328081997,1716839479255,-545.36,0.00030892,6]
[328081998,1716839479264,-550.62,0.00030892,6]
[328081999,1716839479273,-871.02,0.00030892,6]
[328082000,1716839479283,-812.8,0.00030892,6]
[328082001,1716839479293,-713.41,0.00030892,6]
[328082002,1716839479305,-500.0,0.00030892,6]
[328082003,1716839479314,-6331.69,0.00030893,6]
[328082004,1716839479323,-500.0,0.00030893,6]
[328082005,1716839479332,-1286.64646513,0.00030893,6]
[328082006,1716839479343,-973.45,0.00030893,6]
[328082007,1716839479355,-694.48353487,0.00030893,6]
[328082008,1716839479363,-689.58,0.00030893,6]
[328082009,1716839479372,-5653.83,0.00030893,6]
[328082010,1716839479381,-4237.23643652,0.00030893,6]
[328082011,1716839479393,-4018.56356348,0.00030893,6]
[328082012,1716839479403,-590.24,0.00030893,6]
[328082013,1716839479412,-968.5,0.00030893,6]
[328082014,1716839479422,-786.06,0.00030893,6]
[328082015,1716839479431,-650.56,0.00030893,6]
[328082016,1716839479440,-1593.08015627,0.00030893,6]
[328082017,1716839479451,-899.57984373,0.00030893,6]
[328082018,1716839479461,-142.11939627,0.00030893,6]
[328082019,1716839479472,-922.85034322,0.00030893,6]
[328082020,1716839479483,-472.51026051,0.00030893,6]
[328082021,1716839479492,-940.03,0.00030893,6]
[328082022,1716839479501,-1309.89,0.00030893,6]
[328082023,1716839479511,-1475.13,0.00030893,6]
[328082024,1716839479520,-871.41,0.00030893,6]
[328082025,1716839479529,-2043.0,0.00030893,6]
[328082026,1716839479537,-1224.97,0.00030893,6]
[328082027,1716839479547,-5591.76828847,0.00030893,6]
[328082037,1716839690718,159.3,0.00013973,2]
[328082040,1716839817460,573.30429987,0.00016028,7]
[328082041,1716839822159,989.55333402,0.0001048,2]
[328082042,1716839823426,180.23015503,0.00013973,2]
[328082207,1716840243053,-252.72064751,0.00015919,2]
[328082208,1716840243075,-2048.2595,0.0001592,2]
[328082209,1716840243094,-1091.27944962,0.00015922,2]
[328082210,1716840243114,-164.6263139,0.00015928,2]
[328082211,1716840243134,-4640.61846616,0.00016018,2]
[328082212,1716840243158,-273.01392063,0.00016018,2]
[328082213,1716840243177,-300.0,0.00016019,2]
[328082214,1716840243198,-150.0,0.00016019,2]
[328082215,1716840243220,-150.0,0.00016019,2]
[328082216,1716840243240,-150.0,0.00016019,2]
[328082217,1716840243259,-579.48170218,0.0001602,2]
[328082218,1716840256492,-4100000.0,0.00033518,60]
[328082219,1716840270982,-269.63239705,0.00015859,2]
[328082220,1716840271006,-688.85473043,0.0001593,2]
[328082221,1716840271027,-405.31155357,0.00016019,2]
[328082222,1716840271050,-636.20131895,0.0001602,2]
[328082223,1716840272533,-2000.0,0.0001602,2]
[328082224,1716840273946,-2000.0,0.0001602,2]
[328082225,1716840275291,-2000.0,0.0001602,2]
[328082226,1716840276733,-2000.0,0.0001602,2]
[328082227,1716840278290,-2000.0,0.0001602,2]
[328082228,1716840279735,-2000.0,0.0001602,2]
[328082229,1716840281121,-2000.0,0.0001602,2]
[328082230,1716840282451,-2000.0,0.0001602,2]
[328082231,1716840284552,-2000.0,0.0001602,2]
[328082341,1716840633278,-361.64022012,0.00015909,2]
[328082342,1716840633288,-164.62631389,0.0001591,2]
[328082343,1716840633297,-79.17606227,0.00015913,2]
[328082344,1716840633336,-85.45025162,0.00015913,2]
[328082345,1716840633346,-164.62631389,0.00015915,2]
[328082346,1716840633355,-12.30748093,0.00015918,2]
[328082347,1716840633366,-152.31883296,0.00015918,2]
[328082348,1716840633376,-164.62631389,0.0001592,2]
[328082349,1716840633385,-164.62631389,0.00015923,2]
[328082350,1716840633398,-164.62631389,0.00015925,2]
[328082351,1716840633407,-164.62631389,0.00015928,2]
[328082352,1716840633417,-602.7478891,0.0001593,2]
[328082353,1716840633426,-164.62631389,0.0001593,2]
[328082354,1716840633435,-299.99,0.0001593,2]
[328082355,1716840633445,-300.0,0.00016009,2]
[328082356,1716840633454,-150.0,0.00016009,2]
[328082357,1716840633464,-93079.01129152,0.0001601,2]
[328082358,1716840633473,-883.0724361,0.00016018,2]
[328082359,1716840633482,-7340.65129604,0.00016028,2]
[328082360,1716840633494,-374.48555736,0.00016028,2]
[328082361,1716840633504,-1127.44895713,0.00016028,2]
[328082362,1716840633513,-480.94869717,0.00016028,2]
[328082363,1716840633523,-155.0,0.00016028,2]
[328082364,1716840633533,-790.48715204,0.00016028,2]
[328082365,1716840633546,-204.9501833,0.00016028,2]
[328082366,1716840633556,-3141.02,0.00016028,2]
[328082367,1716840633565,-499.99,0.00016028,2]
[328082368,1716840633575,-729.59637114,0.00016029,2]
[328082370,1716840633584,-36098.3535666,0.0001603,2]
[328082371,1716840633595,-82982.30087,0.0001603,2]
[328082372,1716840633606,-62186.88675659,0.0001603,2]
[328082373,1716840633620,-500.0,0.0001603,2]
[328082374,1716840633630,-500.0,0.0001603,2]
[328082376,1716840633640,-500.0,0.0001603,2]
[328082378,1716840633649,-500.0,0.0001603,2]
[328082380,1716840633658,-500.0,0.0001603,2]
[328082382,1716840633667,-500.0,0.0001603,2]
[328082384,1716840633676,-500.0,0.0001603,2]
[328082386,1716840633686,-500.0,0.0001603,2]
[328082388,1716840633695,-500.0,0.0001603,2]
[328082390,1716840633706,-500.0,0.0001603,2]
[328082392,1716840633715,-500.0,0.0001603,2]
[328082394,1716840633724,-500.0,0.0001603,2]
[328082396,1716840633734,-500.0,0.0001603,2]
[328082398,1716840633747,-500.0,0.0001603,2]
[328082400,1716840633756,-658.0,0.0001603,2]
[328082402,1716840633765,-10419.56,0.0001603,2]
[328082404,1716840633774,-150.0,0.00017222,2]
[328082406,1716840633784,-524.26,0.00017624,2]
[328082408,1716840633793,-366.08,0.00018357,2]
[328082410,1716840633803,-602.74788908,0.00018428,2]
[328082412,1716840633812,-155.0,0.00019,2]
[328082414,1716840633822,-305.62737491,0.00019178,2]
[328082416,1716840633832,-500.0,0.00019178,2]
[328082418,1716840633842,-500.0,0.00019178,2]
[328082420,1716840633851,-500.0,0.00019178,2]
[328082422,1716840633861,-361.21098268,0.00019178,2]
[328082424,1716840633870,-500.0,0.00019178,2]
[328082426,1716840633880,-631.78164333,0.00019178,2]
[328082429,1716840633889,-500.0,0.00019178,2]
[328082431,1716840633899,-500.0,0.00019178,2]
[328082433,1716840633908,-500.0,0.00019178,2]
[328082435,1716840633918,-306.09932055,0.00019178,2]
[328082436,1716840633927,-579.23781792,0.00019178,2]
[328082438,1716840633936,-500.0,0.00019178,2]
[328082440,1716840633945,-500.0,0.00019178,2]
[328082443,1716840633955,-500.0,0.00019178,2]
[328082445,1716840633965,-500.0,0.00019178,2]
[328082447,1716840633974,-500.0,0.00019178,2]
[328082449,1716840633984,-500.0,0.00019178,2]
[328082451,1716840633996,-500.0,0.00019178,2]
[328082453,1716840634006,-500.0,0.00019178,2]
[328082455,1716840634015,-500.0,0.00019178,2]
[328082457,1716840634024,-500.0,0.00019178,2]
[328082459,1716840634036,-500.0,0.00019178,2]
[328082461,1716840634045,-500.0,0.00019178,2]
[328082463,1716840634055,-500.0,0.00019178,2]
[328082465,1716840634064,-500.0,0.00019178,2]
[328082467,1716840634074,-500.0,0.00019178,2]
[328082469,1716840634083,-500.0,0.00019178,2]
[328082471,1716840634093,-500.0,0.00019178,2]
[328082473,1716840634103,-286.16199382,0.00019178,2]
[328082475,1716840634112,-524.26,0.00019827,2]
[328082477,1716840634121,-226.08,0.00019852,2]
[328082479,1716840634131,-445.84257136,0.0002,2]
[328082481,1716840634140,-257.35260169,0.0002,2]
[328082483,1716840634150,-509.44,0.00020176,2]
[328082485,1716840634159,-925.11,0.00020239,2]
[328082487,1716840634169,-325.91,0.00020302,2]
[328082489,1716840634178,-500.0,0.00020375,2]
[328082491,1716840634188,-366.08,0.00020621,2]
[328082493,1716840634197,-602.74788908,0.00020927,2]
[328082495,1716840634207,-250.0,0.00021779,2]
[328082497,1716840634216,-216.39,0.00021918,2]
[328082499,1716840634226,-250.0,0.00021918,2]
[328082501,1716840634235,-1226.67,0.00021918,2]
[328082503,1716840634248,-524.26,0.0002203,2]
[328082505,1716840634257,-366.08,0.00022885,2]
[328082507,1716840634266,-602.74788908,0.00023425,2]
[328082509,1716840634275,-250.0,0.00023483,2]
[328082511,1716840634284,-3208.16,0.00023491,2]
[328082513,1716840634293,-23890.0,0.00023578,2]
[328082515,1716840634303,-5980.13,0.00023759,2]
[328082517,1716840634312,-11599.63,0.00024222,2]
[328082519,1716840634322,-524.26,0.00024233,2]
[328082521,1716840634331,-72.22204907,0.00024425,2]
[328082523,1716840634344,-80.85919892,0.00024425,2]
[328082525,1716840634353,-207.01726157,0.00024798,2]
[328082528,1716840634369,-106.46731688,0.00024798,2]
[328082530,1716840634378,-545.35268312,0.00024889,2]
[328082532,1716840634390,-1524.21502357,0.00024889,2]
[328082534,1716840634400,-1943.60701644,0.00024889,2]
[328082827,1716840638847,-125.96069021,0.00024889,2]
[328082829,1716840638857,-160.37930979,0.00024889,2]
[328082831,1716840638869,-1909.18839686,0.00024889,2]
[328082833,1716840638878,-1559.24629814,0.00024889,2]
[328082835,1716840638890,-510.32140851,0.00024889,2]
[328082837,1716840638899,-2069.56770665,0.00024889,2]
[328082839,1716840638908,-18663.73141184,0.00024898,2]
[328082841,1716840638919,-2276.96643479,0.00024898,2]
[328082845,1716840638947,-7447.53759697,0.00024898,2]
[328082847,1716840638957,-28388.23544354,0.00024898,2]
[328082849,1716840638966,-28388.23544354,0.00024898,2]
[328082851,1716840638976,-28388.23544354,0.00024898,2]
[328082853,1716840638986,-28388.23544354,0.00024898,2]
[328082855,1716840638997,-610.62,0.00024916,2]
[328082857,1716840639006,-153.08124799,0.00024959,2]
[328082859,1716840639016,-160.62189487,0.0002499,2]
[328082861,1716840639026,-1200.46047298,0.00025,2]
[328082862,1716840639038,-72702.08586017,0.00025,2]
[328082863,1716840639048,-366.08,0.00025149,2]
[328082864,1716840639058,-155.12,0.00025174,2]
[328082865,1716840639069,-165.45,0.00025249,2]
[328082866,1716840639079,-155.12,0.000253,2]
[328082867,1716840639089,-500.0,0.00025636,2]
[328082868,1716840639100,-900.0,0.00025636,2]
[328082869,1716840639110,-28388.23544354,0.00025646,2]
[328082870,1716840639120,-2069.56770665,0.00025646,2]
[328082871,1716840639130,-602.74788908,0.00025924,2]
[328082872,1716840639141,-524.63817543,0.00025999,2]
[328082873,1716840639151,-23543.53052793,0.00026,5]
[328082874,1716840639161,-900.0,0.00026184,2]
[328082875,1716840639172,-3208.16,0.0002623,2]
[328082876,1716840639182,-524.26,0.00026436,2]
[328082877,1716840639192,-900.0,0.00026732,2]
[328082878,1716840639201,-500.0,0.00026732,2]
[328082879,1716840639211,-800.0,0.00027006,2]
[328082880,1716840639221,-500.0,0.00027006,2]
[328082881,1716840639230,-151.0,0.00027009,7]
[328082882,1716840639240,-155.08702744,0.00027113,2]
[328082883,1716840639252,-900.0,0.0002728,2]
[328082884,1716840639261,-366.08,0.00027413,2]
[328082885,1716840639271,-800.0,0.00027554,2]
[328082886,1716840639280,-28388.23544354,0.00027589,2]
[328082887,1716840639289,-2069.56770665,0.00027589,2]
[328082888,1716840639299,-151.0,0.0002759,7]
[328082889,1716840639308,-313.48457842,0.00027672,2]
[328082890,1716840639318,-900.0,0.00027828,2]
[328082891,1716840639328,-500.0,0.00027828,2]
[328082892,1716840639338,-610.62,0.0002803,2]
[328082893,1716840639347,-800.0,0.00028102,2]
[328082894,1716840639357,-500.0,0.00028102,2]
[328082895,1716840639367,-503.1434508,0.00028102,2]
[328082896,1716840639376,-151.0,0.00028171,7]
[328082898,1716840639387,-900.0,0.00028376,2]
[328082900,1716840639397,-602.74788908,0.00028422,2]
[328082902,1716840639406,-300.0,0.00028558,2]
[328082904,1716840639416,-163.63,0.00028558,2]
[328082906,1716840639425,-421.33,0.00028558,2]
[328082908,1716840639434,-800.0,0.0002865,2]
[328082910,1716840639444,-151.0,0.00028753,7]
[328082912,1716840639453,-500.0,0.00028924,2]
[328082914,1716840639463,-3208.16,0.0002897,2]
[328082916,1716840639473,-800.0,0.00029198,2]
[328082918,1716840639482,-500.0,0.00029198,2]
[328082920,1716840639491,-4322.0,0.000293,5]
[328082922,1716840639502,-800.0,0.000293,5]
[328082924,1716840639511,-151.0,0.00029334,7]
[328082926,1716840639520,-159.3,0.00029349,2]
[328082928,1716840639529,-900.0,0.00029472,2]
[328082930,1716840639542,-355.13147955,0.000295,2]
[328082932,1716840639553,-28388.23544354,0.00029532,2]
[328082934,1716840639562,-2069.56770665,0.00029533,2]
[328082936,1716840639571,-500.0,0.000296,10]
[328082938,1716840639581,-366.08,0.00029676,2]
[328082940,1716840639591,-289.0,0.00029695,2]
[328082942,1716840639601,-5765.0,0.00029695,2]
[328082944,1716840639610,-37936.0,0.00029695,2]
[328082946,1716840639620,-1100.0,0.000297,10]
[328082948,1716840639630,-355.13147955,0.00029768,2]
[328082949,1716840639639,-1600.0,0.000298,10]
[328082951,1716840639648,-200.67530649,0.00029838,2]
[328082953,1716840639658,-2200.0,0.000299,10]
[328082955,1716840639667,-151.0,0.00029915,7]
[328082957,1716840639677,-13200.54075353,0.0003,4]
[328082960,1716840639687,-500.0,0.0003002,10]
[328082961,1716840639697,-151.3,0.00030026,2]
[328082963,1716840639706,-2996.1525782,0.00030035,2]
[328082965,1716840639716,-214.0,0.00030036,2]
[328082988,1716840639922,-9301.29650308,0.00030036,2]
[328082990,1716840639939,-167.73321303,0.00030036,2]
[328082992,1716840639948,-355.13147955,0.00030036,2]
[328082994,1716840639958,-167.30304453,0.00030036,2]
[328082996,1716840639967,-961.69055193,0.00030036,2]
[328082998,1716840639978,-151.3,0.00030125,2]
[328083001,1716840639987,-151.3,0.00030125,2]
[328083003,1716840639998,-151.3,0.00030125,2]
[328083005,1716840640008,-151.3,0.00030125,2]
[328083007,1716840640018,-151.3,0.00030125,2]
[328083009,1716840640028,-151.3,0.00030125,2]
[328083011,1716840640038,-151.3,0.00030125,2]
[328083013,1716840640048,-200.0,0.00030125,7]
[328083015,1716840640058,-160.62189487,0.00030126,2]
[328083017,1716840640068,-151.3,0.00030126,2]
[328083019,1716840640077,-4281.0007606,0.00030134,4]
[328083021,1716840640087,-229.91937719,0.00030134,4]
[328083023,1716840640097,-150.0,0.00030134,7]
[328083025,1716840640107,-1000.0,0.00030135,2]
[328083027,1716840640118,-150.0,0.00030135,7]
[328083029,1716840640128,-11914.08023376,0.00030136,11]
[328083032,1716840640141,-429.08694931,0.00030136,11]
[328083036,1716840640173,-1703.41591,0.00030136,11]
[328083038,1716840640185,-1078.0799953,0.00030136,11]
[328083040,1716840640196,-1095.36771121,0.00030136,11]
[328083043,1716840640207,-1840.7599115,0.00030136,11]
[328083045,1716840640218,-1847.439928,0.00030136,11]
[328083047,1716840640229,-68025.70641141,0.00030136,11]
[328083049,1716840640241,-344.27431551,0.00030136,11]
[328083119,1716840640969,-854.94761817,0.00030136,11]
[328083120,1716840640980,-6938.4568391,0.00030136,11]
[328083121,1716840640990,-1183.30419578,0.00030136,11]
[328083123,1716840641016,-257.30280198,0.00030136,11]
[328083126,1716840641027,-69434.33231717,0.00030136,11]
[328083179,1716840641794,-250.0,0.00028837,2]
[328083180,1716840641803,-73674.8799919,0.00030136,11]
[328083181,1716840641852,-1048.0,0.00030136,11]
[328083379,1716840643591,-3788.37510468,0.00030136,11]
[328083477,1716840644377,-20894.87449996,0.00030136,11]
[328083479,1716840644395,-1941.55000001,0.00030136,11]
[328083481,1716840644407,-6946.0,0.00030136,11]
[328083483,1716840644418,-1733.73555,0.00030136,11]
[328083485,1716840644430,-2173.51794222,0.00030136,11]
[328083487,1716840644442,-3771.59999998,0.00030136,11]
[328083489,1716840644454,-10420.29039794,0.00030136,11]
[328083491,1716840644466,-5858.0462461,0.00030136,11]
[328083494,1716840644477,-1619.86162,0.00030136,11]
[328083495,1716840644488,-699.47666179,0.00030136,11]
[328083496,1716840644499,-6961.18620026,0.00030136,11]
[328083611,1716840646554,-1386.02,0.00030136,11]
[328083612,1716840646659,-8623.31057665,0.00030136,11]
[328083613,1716840646670,-5499.51940812,0.00030136,11]
[328083614,1716840646685,-6330.0,0.00030136,11]
[328083640,1716840646952,-22588.03498689,0.00030136,11]
[328083641,1716840646963,-4577.63206535,0.00030136,11]
[328083642,1716840647027,-1487.03756624,0.00030136,11]
[328083643,1716840647038,-3264.2630295,0.00030136,11]
[328083644,1716840647049,-1649.32414159,0.00030136,11]
[328083645,1716840647061,-4423.89717805,0.00030136,11]
[328083646,1716840647072,-6942.5,0.00030136,11]
[328083647,1716840681987,152.88,0.00013973,2]
[328083650,1716840870027,167.71,0.00027303,120]
[328083707,1716841169778,158.12,0.00013973,2]
[328083716,1716841577349,-7141.0,0.0001592,2]
[328083717,1716841589523,-2000.0,0.0001592,2]
[328083718,1716841590803,-2000.0,0.0001592,2]
[328083719,1716841591998,-2000.0,0.0001592,2]
[328083720,1716841593086,-2000.0,0.0001592,2]
[328083721,1716841594185,-977.385,0.0001592,2]
[328083722,1716841594207,-207.68481449,0.00016018,2]
[328083723,1716841594227,-155.0,0.00016018,2]
[328083724,1716841594247,-155.0,0.00016018,2]
[328083725,1716841594268,-234.51666684,0.00016018,2]
[328083726,1716841594289,-270.41351867,0.00016018,2]
[328083727,1716841595254,-51.71609323,0.00016018,2]
[328083728,1716841595274,-978.30056291,0.00016019,2]
[328083729,1716841595296,-410.29115714,0.00016019,2]
[328083730,1716841595316,-559.69218672,0.0001602,2]
[328083731,1716841597155,-2000.0,0.0001602,2]
[328083732,1716841598532,-2000.0,0.0001602,2]
[328083733,1716841600051,-2000.0,0.0001602,2]
[328083734,1716841608707,-1300.0,0.0001602,2]
[328083738,1716841636094,-2462.94047241,0.0001602,2]
[328083828,1716841747236,332.15906142,0.0001594,30]
[328083839,1716841831723,-13809.63487877,0.0001602,2]
[328083840,1716841831808,-1241.72374471,0.0001602,2]
[328083841,1716841831848,-578.0391,0.0001602,2]
[328083858,1716841837498,-23406.0329714,0.0001602,2]
[328083859,1716841837509,-521.60000002,0.0001602,2]
[328083860,1716841837579,-1315.62317809,0.0001602,2]
[328083861,1716841837593,-1413.57005597,0.0001602,2]
[328083862,1716841837605,-6196.11596852,0.0001602,2]
[328083863,1716841837615,-499.99,0.0002,2]
[328083864,1716841837625,-1264.69921451,0.0002,2]
[328083865,1716841837635,-186.01041923,0.00024755,2]
[328083866,1716841837644,-159.28756665,0.00024888,2]
[328083867,1716841837654,-869.5837424,0.00024898,4]
[328083868,1716841837664,-4162.76643495,0.00024898,2]
[328083869,1716841837765,-7272.65439133,0.00024898,2]
[328083870,1716841837777,-2398.83111212,0.00024898,2]
[328083871,1716841837789,-23662.7648799,0.00024898,2]
[328083872,1716841837799,-1044.31301003,0.00024898,2]
[328083873,1716841837809,-257.24940323,0.00024898,2]
[328083874,1716841837819,-299.99,0.00024898,7]
[328083875,1716841837828,-639.24919818,0.00025,2]
[328083876,1716841837838,-1050.0,0.00025,2]
[328083877,1716841837848,-341.62,0.00025222,2]
[328083878,1716841837858,-155.39728483,0.00025641,2]
[328083879,1716841837868,-152.60818584,0.00026111,2]
[328083880,1716841837877,-11673.27,0.00026415,2]
[328083881,1716841837887,-165.45,0.00026491,2]
[328083882,1716841837897,-183.47,0.0002684,2]
[328083883,1716841837908,-151.0,0.00026856,5]
[328083885,1716841837922,-1022.22,0.00027001,2]
[328083886,1716841837932,-250.0,0.00027082,2]
[328083887,1716841837942,-250.0,0.00027093,2]
[328083888,1716841837952,-500.0,0.00027112,2]
[328083889,1716841837963,-566.38,0.00027227,2]
[328083890,1716841837973,-539.73,0.00027234,2]
[328083891,1716841837983,-1819.76,0.00027271,2]
[328083892,1716841837994,-445.84257136,0.00027303,2]
[328083893,1716841838005,-337.00322346,0.00027303,7]
[328083894,1716841838015,-200.0,0.0002732,2]
[328083895,1716841838025,-164.18,0.00027341,2]
[328083896,1716841838034,-210.81,0.00027345,2]
[328083897,1716841838043,-157.47,0.00027357,2]
[328083898,1716841838053,-150.0,0.00027414,2]
[328083899,1716841838063,-1000.0,0.00027414,2]
[328083900,1716841838073,-341.62,0.00027486,2]
[328083901,1716841838082,-160.17758889,0.0002795,2]
[328083902,1716841838093,-500.0,0.00028102,2]
[328083903,1716841838103,-500.0,0.00028102,2]
[328083904,1716841838112,-600.0,0.00028102,2]
[328083905,1716841838122,-155.39728483,0.00028167,2]
[328083906,1716841838131,-500.0,0.0002865,2]